bitfinex/quotes_SOLUSD_20251201
["timestamp","ask_amount","ask_price","bid_price","bid_amount"]
[1764552454593,1e-08,128.55,128.54,35.99582197]
[1764552458700,1e-08,128.55,128.54,27.58854347]
[1764552458897,1e-08,128.55,128.54,24.08854347]
[1764552459098,1e-08,128.55,128.54,27.58854347]
[1764552459420,0.67000001,128.55,128.54,3.5]
[1764552459598,1e-08,128.55,128.54,11.27967947]
[1764552460394,1e-08,128.55,128.51,7.78124742]
[1764552460395,16.19662968,128.55,128.51,7.78124742]
[1764552460605,7.7472785,128.52,128.47,7.78391842]
[1764552460816,9.47994492,128.54,128.48,3.5]
[1764552461019,7.7472785,128.53,128.48,3.5]
[1764552461192,0.67,128.53,128.48,11.2472785]
[1764552461393,7.77935118,128.55,128.49,7.7472785]
[1764552461595,0.67000001,128.55,128.5,11.2472785]
[1764552461789,0.67000001,128.55,128.5,27.5561425]
[1764552462614,16.1964822,128.55,128.51,7.7814956]
[1764552462993,0.67,128.54,128.51,7.7814956]
[1764552463800,0.67,128.54,128.52,3.5]
[1764552465111,0.67,128.54,128.47,27.20640027]
[1764552465112,7.7472785,128.53,128.47,27.20640027]
[1764552465306,16.1971029,128.54,128.48,11.2472785]
[1764552465619,0.67,128.53,128.48,11.2472785]
[1764552465822,0.67,128.53,128.48,3.5]
[1764552466135,7.7472785,128.52,128.49,3.5]
[1764552466297,8.4172785,128.53,128.49,3.5]
[1764552466632,0.67,128.52,128.49,3.5]
[1764552467121,8.45109121,128.52,128.49,3.5]
[1764552467517,0.67,128.51,128.49,3.5]
[1764552468618,0.67,128.51,128.48,7.78316499]
[1764552468619,0.67,128.51,128.5,3.5]
[1764552469039,0.67,128.54,128.5,3.5]
[1764552469333,0.67,128.54,128.51,7.7814956]
[1764552471029,0.67,128.54,128.5,27.5907507]
[1764552471327,0.67,128.54,128.5,35.3380292]
[1764552471503,0.67,128.54,128.5,55.45328211]
[1764552471903,0.67,128.54,128.5,54.79328211]
[1764552472129,1e-08,128.55,128.5,54.79328211]
[1764552472325,0.67000001,128.55,128.51,7.7472785]
[1764552472522,0.67000001,128.55,128.52,3.5]
[1764552473232,8.44908258,128.55,128.52,11.28080025]
[1764552473416,0.67000001,128.55,128.52,11.28080025]
[1764552473619,0.67,128.54,128.52,3.5]
[1764552474229,1e-08,128.55,128.52,11.28069917]
[1764552474408,0.67000001,128.55,128.52,11.28069917]
[1764552475335,8.41727851,128.55,128.52,3.5]
[1764552475516,16.19644502,128.55,128.52,3.5]
[1764552475702,0.67,128.54,128.52,3.5]
[1764552476324,1e-08,128.55,128.52,3.5]
[1764552476520,0.67000001,128.55,128.52,3.5]
[1764552477030,16.19639084,128.55,128.52,3.5]
[1764552477229,8.44911234,128.55,128.52,3.5]
[1764552477430,0.67,128.54,128.52,3.5]
[1764552479350,0.67,128.54,128.52,11.28088474]
[1764552479534,1e-08,128.55,128.52,11.28088474]
[1764552479714,0.67000001,128.55,128.52,11.28088474]
[1764552480213,8.44908837,128.55,128.52,11.28088474]
[1764552480531,7.77908837,128.55,128.52,11.28088474]
[1764552480732,0.67,128.54,128.52,11.28088474]
[1764552480914,8.4172785,128.54,128.5,7.78176965]
[1764552481229,0.67,128.54,128.51,3.5]
[1764552482027,0.67,128.54,128.51,11.2812152]
[1764552482228,7.77908837,128.55,128.51,11.9512152]
[1764552482418,8.44908837,128.55,128.51,19.6984937]
[1764552482622,1e-08,128.55,128.51,38.4822327]
[1764552482820,1e-08,128.55,128.52,0.67]
[1764552483023,1e-08,128.55,128.52,8.4172785]
[1764552483222,0.67,128.64,128.54,31.803421]
[1764552483422,0.2,128.65,128.62,7.7472785]
[1764552483613,0.87,128.65,128.63,11.2472785]
[1764552483819,8.6430536,128.65,128.59,16.978864]
[1764552484019,7.77423618,128.63,128.6,3.5]
[1764552484214,8.44369438,128.64,128.61,7.7472785]
[1764552484527,0.67,128.64,128.61,7.7472785]
[1764552484933,0.67,128.64,128.6,7.77585888]
[1764552485114,0.67,128.64,128.61,3.5]
[1764552485315,16.19106547,128.64,128.61,3.5]
[1764552485531,35.62514507,128.64,128.58,31.83333115]
[1764552485719,0.67,128.63,128.59,3.5]
[1764552485921,8.4172785,128.63,128.6,3.5]
[1764552486129,8.44432014,128.63,128.6,11.2472785]
[1764552486320,0.67,128.62,128.6,3.5]
[1764552486523,0.67,128.62,128.6,11.2472785]
[1764552486722,0.67,128.62,128.6,3.5]
[1764552487530,7.77432014,128.63,128.6,3.5]
[1764552487845,0.67,128.62,128.6,3.5]
[1764552488018,0.67,128.62,128.61,3.5]
[1764552488226,8.44484061,128.62,128.61,3.5]
[1764552488441,16.19211911,128.62,128.61,3.5]
[1764552488617,44.43916556,128.62,128.59,3.5]
[1764552488832,7.7472785,128.6,128.59,3.5]
[1764552489214,8.4172785,128.6,128.59,3.5]
[1764552489414,0.67,128.6,128.58,3.5]
[1764552489638,27.21194214,128.62,128.58,3.5]
[1764552489940,17.22722342,128.61,128.58,3.5]
[1764552490131,7.77604976,128.6,128.58,3.5]
[1764552490334,8.44604976,128.6,128.58,3.5]
[1764552490519,0.67,128.59,128.58,3.5]
[1764552490737,8.4172785,128.59,128.53,7.7472785]
[1764552491019,7.7472785,128.58,128.54,3.5]
[1764552491240,8.4172785,128.58,128.54,3.5]
[1764552491417,0.67,128.57,128.54,3.5]
[1764552491612,8.4172785,128.57,128.51,8.4172785]
[1764552491940,7.7472785,128.54,128.5,3.5]
[1764552492134,7.78028475,128.53,128.5,3.5]
[1764552492450,7.7472785,128.51,128.5,3.5]
[1764552492815,7.7472785,128.51,128.44,0.67]
[1764552492816,17.22722342,128.51,128.45,7.7472785]
[1764552493125,8.4172785,128.5,128.46,3.5]
[1764552493636,0.67,128.49,128.45,7.7472785]
[1764552493817,0.67,128.49,128.46,3.5]
[1764552494015,0.67,128.49,128.43,15.53339256]
[1764552494221,7.78331257,128.48,128.46,3.5]
[1764552494457,15.53059107,128.48,128.46,3.5]
[1764552494616,0.67,128.47,128.46,3.5]
[1764552496855,8.45391842,128.47,128.46,3.5]
[1764552497542,0.67,128.47,128.46,3.5]
[1764552497747,8.80994492,128.46,128.38,19.35]
[1764552497922,7.7472785,128.45,128.39,11.9172785]
[1764552498122,8.4172785,128.45,128.4,7.7472785]
[1764552498323,16.20288255,128.45,128.4,7.78808856]
[1764552498522,0.67,128.44,128.39,11.9172785]
[1764552498750,8.4172785,128.44,128.39,11.9172785]
[1764552499145,0.67,128.44,128.39,11.9172785]
[1764552499536,0.67,128.44,128.39,19.70586597]
[1764552500438,0.67,128.44,128.39,11.95858747]
[1764552500634,0.67,128.44,128.39,19.70586597]
[1764552500837,0.67,128.44,128.4,0.67]
[1764552501744,0.67,128.44,128.4,16.20517233]
[1764552502043,7.78560405,128.45,128.4,16.20517233]
[1764552502240,0.67,128.46,128.41,8.4172785]
[1764552502424,0.67,128.46,128.42,3.5]
[1764552502626,8.4172785,128.45,128.42,3.5]
[1764552503028,0.67,128.44,128.42,3.5]
[1764552503829,8.4172785,128.44,128.42,3.5]
[1764552504151,0.67,128.44,128.42,3.5]
[1764552505843,0.67,128.44,128.4,7.78789383]
[1764552506045,0.67,128.44,128.37,0.1]
[1764552506046,7.7472785,128.41,128.37,0.1]
[1764552506348,7.7472785,128.4,128.38,3.5]
[1764552506727,0.68,128.39,128.38,3.5]
[1764552507323,8.46876859,128.39,128.38,3.5]
[1764552507546,16.21604709,128.39,128.38,3.5]
[1764552510235,8.4272785,128.39,128.38,3.5]
[1764552510436,12.86238382,128.39,128.38,3.5]
[1764552510753,20.65115241,128.39,128.37,0.1]
[1764552510927,12.86238382,128.38,128.37,0.1]
[1764552511847,8.46816199,128.4,128.37,0.1]
[1764552512047,20.65054581,128.4,128.37,0.1]
[1764552512250,12.86238382,128.42,128.37,12.98238382]
[1764552512449,0.68,128.42,128.38,12.18238382]
[1764552512646,12.18238382,128.44,128.38,0.7]
[1764552512849,12.18238382,128.44,128.39,12.18238382]
[1764552513051,0.68,128.43,128.4,3.5]
[1764552513433,12.18238382,128.44,128.4,4.2]
[1764552513634,12.18238382,128.44,128.4,3.5]
[1764552513837,12.86238382,128.43,128.4,3.5]
[1764552514030,12.86238382,128.43,128.41,3.5]
[1764552514260,0.68,128.42,128.41,3.5]
[1764552514658,7.78516266,128.45,128.41,4.2]
[1764552514969,20.64754648,128.45,128.41,3.5]
[1764552515143,0.68,128.44,128.41,3.5]
[1764552515652,8.46593911,128.44,128.41,3.5]
[1764552516049,12.18238382,128.45,128.41,11.28754708]
[1764552516252,0.68,128.44,128.41,3.5]
[1764552517565,12.86238382,128.44,128.41,3.5]
[1764552517785,0.68,128.44,128.41,3.5]
[1764552518446,8.46590964,128.44,128.41,3.5]
[1764552519066,24.09351836,128.46,128.42,0.7]
[1764552519359,24.77351836,128.46,128.42,12.88238382]
[1764552520056,0.68,128.48,128.43,12.88238382]
[1764552520265,12.86238382,128.47,128.42,19.96905112]
[1764552520750,0.68,128.46,128.42,20.66905112]
[1764552520950,8.46466201,128.46,128.42,8.4866673]
[1764552521258,8.46466201,128.46,128.42,7.7866673]
[1764552521465,8.46466201,128.46,128.42,8.4866673]
[1764552521669,19.96704583,128.46,128.41,19.9697828]
[1764552521870,0.68,128.45,128.41,20.6697828]
[1764552522046,0.68,128.45,128.42,3.5]
[1764552522573,12.86238382,128.45,128.4,36.27934064]
[1764552522754,12.18238382,128.44,128.41,3.5]
[1764552522940,7.78634275,128.43,128.41,3.5]
[1764552523561,8.46634275,128.43,128.41,3.5]
[1764552525087,0.68,128.45,128.41,4.2]
[1764552525974,0.68,128.45,128.41,3.5]
[1764552526265,8.46521034,128.45,128.41,11.28732003]
[1764552526471,0.68,128.47,128.42,12.88238382]
[1764552527076,0.68,128.47,128.43,12.88238382]
[1764552527274,8.46406403,128.47,128.44,3.5]
[1764552528167,8.46406403,128.47,128.45,3.5]
[1764552528373,20.64644785,128.47,128.45,3.5]
[1764552530061,8.46406403,128.47,128.45,3.5]
[1764552533784,0.68,128.47,128.45,3.5]
[1764552534156,8.46420904,128.47,128.45,3.5]
[1764552534988,119.708864,128.49,128.46,0.7]
[1764552535194,0.68,128.49,128.45,7.78498629]
[1764552535478,0.68,128.48,128.46,3.5]
[1764552536083,12.87238382,128.49,128.46,3.5]
[1764552536580,12.87238382,128.5,128.46,12.00445722]
[1764552536798,12.18238382,128.5,128.47,3.5]
[1764552537090,0.69,128.49,128.47,3.5]
[1764552537266,12.87238382,128.49,128.47,3.5]
[1764552537655,12.87238382,128.48,128.46,3.5]
[1764552538168,0.69,128.47,128.46,3.5]
[1764552538482,8.47331257,128.48,128.46,3.5]
[1764552538789,12.87238382,128.47,128.46,3.5]
[1764552538974,0.69,128.47,128.46,3.5]
[1764552540687,20.65630224,128.47,128.41,7.78720279]
[1764552540987,12.18238382,128.45,128.42,3.5]
[1764552541190,12.87238382,128.46,128.42,3.5]
[1764552541682,27.24371448,128.47,128.42,4.22]
[1764552541892,0.69,128.46,128.42,4.22]
[1764552542181,12.87238382,128.46,128.42,4.22]
[1764552542576,7.7851304,128.45,128.42,4.22]
[1764552542886,36.96451123,128.49,128.43,0.72]
[1764552543189,36.96451123,128.49,128.44,3.5]
[1764552543190,12.18238382,128.47,128.44,3.5]
[1764552543358,12.18238382,128.47,128.45,3.5]
[1764552543559,12.87238382,128.47,128.45,3.5]
[1764552544480,12.87238382,128.46,128.42,7.78648352]
[1764552544688,12.18238382,128.43,128.38,0.72]
[1764552544873,12.18238382,128.41,128.39,3.5]
[1764552545068,12.18238382,128.4,128.37,0.1]
[1764552545271,37.30119274,128.43,128.37,0.1]
[1764552545485,12.18238382,128.39,128.37,0.1]
[1764552545872,12.87238382,128.39,128.37,0.1]
[1764552546282,7.78937529,128.38,128.37,0.1]
[1764552546478,19.97175911,128.38,128.37,0.1]
[1764552547018,7.78937529,128.38,128.37,0.1]
[1764552547192,12.18238382,128.38,128.37,0.1]
[1764552547687,12.87238382,128.39,128.37,0.1]
[1764552548880,12.18238382,128.38,128.37,0.1]
[1764552549891,12.87238382,128.38,128.37,0.1]
[1764552550085,20.66175911,128.38,128.37,0.1]
[1764552550683,29.47170403,128.38,128.37,0.1]
[1764552550988,45.78056803,128.38,128.37,0.1]
[1764552552097,45.78056803,128.38,128.35,1e-08]
[1764552552098,25.11880892,128.36,128.35,1e-08]
[1764552552399,8.80994492,128.35,128.31,0.1]
[1764552552592,12.18238382,128.32,128.31,0.1]
[1764552553197,12.87238382,128.32,128.31,0.1]
[1764552553380,20.66540127,128.32,128.31,0.1]
[1764552554700,8.80994492,128.35,128.31,0.82]
[1764552554889,16.599927,128.37,128.32,3.5]
[1764552555201,12.18238382,128.36,128.32,3.5]
[1764552555389,12.87238382,128.36,128.32,4.22]
[1764552555977,7.79119594,128.35,128.32,4.22]
[1764552557079,19.97357976,128.35,128.32,4.22]
[1764552557600,12.87238382,128.34,128.32,3.5]
[1764552558280,7.79241019,128.33,128.31,0.1]
[1764552558481,7.79241019,128.33,128.31,3.6]
[1764552558900,12.87238382,128.32,128.31,0.1]
[1764552559084,37.99119274,128.32,128.31,0.1]
[1764552560282,45.78421019,128.32,128.31,0.1]
[1764552560578,7.79301745,128.32,128.31,0.1]
[1764552561797,7.79261067,128.33,128.31,0.1]
[1764552562207,20.66499449,128.33,128.31,0.1]
[1764552562879,21.68232874,128.32,128.31,0.1]
[1764552563799,29.47534619,128.32,128.31,0.1]
[1764552564000,45.78421019,128.32,128.31,0.1]
[1764552564200,32.97534619,128.32,128.31,0.1]
[1764552564784,25.11880892,128.29,128.28,0.1]
[1764552564996,37.30119274,128.29,128.28,0.1]
[1764552565302,37.99119274,128.29,128.28,0.1]
[1764552566080,45.78603255,128.29,128.28,0.1]
[1764552567104,29.47716855,128.29,128.28,0.1]
[1764552567304,7.79483981,128.29,128.28,0.1]
[1764552568390,7.79423226,128.3,128.28,0.1]
[1764552569087,19.97661608,128.3,128.28,0.1]
[1764552569806,7.79423226,128.3,128.28,0.1]
[1764552570205,8.4637473,128.31,128.28,0.1]
[1764552570408,15.57754205,128.31,128.28,0.1]
[1764552570614,16.24754205,128.31,128.28,0.1]
[1764552570914,8.4637473,128.31,128.28,0.1]
[1764552571109,8.80994492,128.34,128.28,0.1]
[1764552571413,27.26256163,128.35,128.29,8.45379475]
[1764552571585,44.24142563,128.35,128.29,8.45379475]
[1764552571903,8.80994492,128.36,128.29,0.67]
[1764552571904,7.78379475,128.33,128.29,0.67]
[1764552572402,35.72510532,128.34,128.29,8.45379475]
[1764552572909,35.72510532,128.34,128.3,0.67]
[1764552574506,16.308864,128.35,128.3,8.46417374]
[1764552574710,24.09265875,128.35,128.3,16.24796849]
[1764552575007,7.78379475,128.36,128.31,11.95379475]
[1764552575191,8.45379475,128.36,128.32,0.67]
[1764552575391,16.24468356,128.36,128.32,0.67]
[1764552577001,8.45379475,128.35,128.31,3.5]
[1764552577207,8.45379475,128.35,128.31,4.17]
[1764552577594,16.24318641,128.38,128.32,8.45379475]
[1764552577799,8.80994492,128.37,128.31,19.74736792]
[1764552577999,7.78379475,128.36,128.31,11.96357317]
[1764552578203,7.78379475,128.35,128.31,4.17]
[1764552578406,15.57559777,128.34,128.31,0.67]
[1764552578708,15.57559777,128.34,128.28,0.77]
[1764552578709,8.80994492,128.33,128.28,0.77]
[1764552578911,7.78379475,128.32,128.28,4.27]
[1764552579110,8.45379475,128.32,128.28,4.27]
[1764552579287,7.78379475,128.31,128.28,4.27]
[1764552579487,8.45379475,128.32,128.28,4.27]
[1764552579807,16.978864,128.32,128.28,3.6]
[1764552580013,8.45379475,128.31,128.28,3.6]
[1764552580413,15.57802701,128.3,128.28,0.1]
[1764552582202,7.79362481,128.31,128.28,0.77]
[1764552582508,7.78379475,128.3,128.28,0.1]
[1764552582715,15.57741956,128.31,128.28,0.77]
[1764552583012,16.24741956,128.31,128.28,0.77]
[1764552583213,16.24741956,128.31,128.28,0.1]
[1764552585618,15.57838135,128.3,128.28,0.1]
[1764552586516,10.59716221,128.3,128.28,0.1]
[1764552586725,11.26716221,128.3,128.28,0.1]
[1764552587025,3.47257561,128.29,128.28,0.1]
[1764552587323,28.59138453,128.29,128.28,0.1]
[1764552588622,33.57798879,128.29,128.28,0.1]
[1764552588813,41.3728286,128.29,128.28,0.1]
[1764552589818,9.47994492,128.28,128.19,7.80052212]
[1764552590002,7.78917987,128.24,128.21,0.67]
[1764552590693,15.58710568,128.24,128.21,0.67]
[1764552590894,15.58710568,128.24,128.21,4.17]
[1764552591214,7.79792581,128.24,128.21,4.17]
[1764552591414,7.79792581,128.24,128.21,3.5]
[1764552591608,7.79792581,128.24,128.21,4.17]
[1764552592324,7.79792581,128.24,128.21,3.5]
[1764552592619,7.79792581,128.24,128.22,0.67]
[1764552593315,7.79792581,128.24,128.21,4.17]
[1764552593704,7.79792581,128.24,128.22,0.67]
[1764552593896,27.29111714,128.25,128.22,0.67]
[1764552594091,35.75029701,128.25,128.22,0.67]
[1764552594418,7.78917987,128.24,128.22,0.67]
[1764552595203,7.78917987,128.24,128.16,39.31508941]
[1764552595204,8.45917987,128.24,128.16,39.31508941]
[1764552595516,7.78917987,128.23,128.18,7.78917987]
[1764552595922,15.58766696,128.23,128.17,31.47748224]
[1764552596098,15.58766696,128.23,128.18,8.46917987]
[1764552596417,7.79848709,128.23,128.18,8.46917987]
[1764552596596,7.79848709,128.23,128.19,0.68]
[1764552596997,7.79848709,128.23,128.19,8.48057143]
[1764552597419,7.79848709,128.23,128.2,0.68]
[1764552597722,7.79848709,128.23,128.21,3.5]
[1764552598107,7.79807489,128.24,128.22,0.68]
[1764552598607,15.58668018,128.25,128.22,0.68]
[1764552598802,7.79750031,128.25,128.22,0.68]
[1764552599413,16.25608276,128.26,128.22,0.68]
[1764552599602,7.78917987,128.24,128.2,0.68]
[1764552599916,16.308864,128.23,128.21,3.5]
[1764552600229,15.58613744,128.26,128.21,11.29963306]
[1764552600399,15.58613744,128.26,128.22,0.68]
[1764552600912,7.78917987,128.25,128.21,3.5]
[1764552601126,7.78917987,128.24,128.21,3.5]
[1764552601427,8.45917987,128.24,128.21,3.5]
[1764552602010,27.28832059,128.26,128.22,0.68]
[1764552602298,7.78917987,128.25,128.22,4.18]
[1764552602607,7.78917987,128.23,128.19,11.30043878]
[1764552602925,7.78917987,128.23,128.19,11.98043878]
[1764552603095,7.78917987,128.23,128.2,0.68]
[1764552603302,7.78917987,128.21,128.17,0.68]
[1764552603505,7.78917987,128.2,128.17,4.18]
[1764552603702,0.67,128.21,128.17,4.18]
[1764552603916,7.78917987,128.21,128.17,3.5]
[1764552604128,27.96848299,128.22,128.18,0.68]
[1764552604331,55.28306308,128.29,128.2,7.78917987]
[1764552604516,7.78917987,128.26,128.21,3.5]
[1764552604825,7.78917987,128.27,128.21,4.18]
[1764552605006,7.78917987,128.26,128.22,0.68]
[1764552605407,7.79727095,128.25,128.22,0.68]
[1764552606430,7.79654826,128.27,128.23,7.78917987]
[1764552606633,7.79654826,128.27,128.22,0.68]
[1764552606634,15.58572813,128.27,128.22,0.68]
[1764552606808,7.78917987,128.25,128.23,3.5]
[1764552607226,8.45917987,128.25,128.23,3.5]
[1764552607528,8.80994492,128.23,128.15,0.68]
[1764552607831,7.78917987,128.19,128.15,4.18]
[1764552608029,7.78917987,128.18,128.15,3.5]
[1764552608207,0.67,128.2,128.15,3.5]
[1764552608409,2.80763044,128.19,128.15,4.18]
[1764552608628,2.80763044,128.19,128.16,0.68]
[1764552608826,24.10674297,128.24,128.17,2.80763044]
[1764552609014,2.80763044,128.21,128.18,3.5]
[1764552609532,2.80763044,128.21,128.18,4.18]
[1764552609827,2.80763044,128.22,128.19,0.68]
[1764552610333,30.77236865,128.23,128.19,0.68]
[1764552610908,2.80763044,128.25,128.2,3.5]
[1764552611128,7.79686748,128.26,128.21,2.80763044]
[1764552611323,22.9680741,128.27,128.21,3.48763044]
[1764552611324,10.60386611,128.27,128.21,3.48763044]
[1764552611516,7.79623567,128.27,128.22,3.48763044]
[1764552612034,10.6032861,128.28,128.23,4.18]
[1764552612413,8.45781486,128.27,128.23,4.18]
[1764552612621,0.67,128.27,128.23,4.18]
[1764552612925,8.45781486,128.27,128.23,4.18]
[1764552613311,8.45781486,128.27,128.24,3.5]
[1764552613518,7.78781486,128.27,128.24,3.5]
[1764552613717,7.79565566,128.28,128.24,4.18]
[1764552613919,7.78781486,128.28,128.24,11.29780355]
[1764552614135,16.308864,128.29,128.25,0.68]
[1764552614334,7.78781486,128.28,128.25,0.68]
[1764552614626,7.78781486,128.27,128.24,3.5]
[1764552614930,7.78781486,128.27,128.24,0.68]
[1764552615131,8.45781486,128.28,128.25,3.5]
[1764552615511,7.78781486,128.27,128.25,3.5]
[1764552615838,7.79605519,128.27,128.25,3.5]
[1764552616013,15.58387005,128.27,128.25,3.5]
[1764552616335,0.67,128.32,128.26,0.68]
[1764552616513,7.78781486,128.31,128.26,0.68]
[1764552616707,7.78781486,128.3,128.26,0.68]
[1764552617130,8.45781486,128.3,128.26,0.68]
[1764552617617,7.79483981,128.29,128.26,0.68]
[1764552617817,15.58265467,128.29,128.26,0.68]
[1764552618237,7.79483981,128.29,128.26,0.68]
[1764552619320,24.09667886,128.31,128.26,0.68]
[1764552619530,15.58208422,128.3,128.26,8.4765455]
[1764552619839,15.58208422,128.3,128.24,7.78781486]
[1764552619840,7.78781486,128.27,128.23,0.68]
[1764552620130,7.78781486,128.28,128.24,3.5]
[1764552620338,7.78781486,128.28,128.24,4.18]
[1764552620512,8.45781486,128.29,128.25,0.68]
[1764552620715,8.45781486,128.28,128.25,0.68]
[1764552620926,7.78781486,128.28,128.25,0.68]
[1764552621340,7.79605519,128.27,128.25,0.68]
[1764552621518,7.79605519,128.27,128.23,8.47837577]
[1764552621717,8.45781486,128.26,128.24,3.5]
[1764552622227,15.58387005,128.27,128.24,4.18]
[1764552622428,16.25387005,128.27,128.24,4.18]
[1764552622624,7.78781486,128.26,128.24,3.5]
[1764552622937,27.28619318,128.27,128.23,3.5]
[1764552623144,8.45781486,128.26,128.23,3.5]
[1764552623514,8.45781486,128.26,128.23,3.31289]
[1764552623718,7.79727095,128.25,128.23,3.31289]
[1764552623918,16.25508581,128.25,128.23,3.31289]
[1764552624538,8.50781486,128.24,128.23,3.31289]
[1764552625047,8.50781486,128.24,128.19,7.80067556]
[1764552625048,8.50781486,128.24,128.2,0.66]
[1764552625227,8.50781486,128.24,128.21,3.5]
[1764552625723,7.79848709,128.23,128.21,3.5]
[1764552626118,15.58630195,128.23,128.21,3.5]
[1764552626355,8.48781486,128.22,128.2,3.5]
[1764552626720,15.58630195,128.23,128.2,3.5]
[1764552626950,35.78251968,128.23,128.2,3.5]
[1764552627944,27.29470482,128.23,128.2,4.21]
[1764552628144,35.08251968,128.23,128.2,4.21]
[1764552628734,35.78251968,128.23,128.2,4.21]
[1764552629039,35.78251968,128.23,128.2,3.5]
[1764552630140,7.79848709,128.23,128.2,4.21]
[1764552630734,8.49848709,128.23,128.2,4.21]
[1764552630932,7.79788501,128.24,128.21,0.71]
[1764552631534,0.7,128.3,128.23,12.21011209]
[1764552631728,12.91011209,128.3,128.24,4.21]
[1764552631922,29.21897609,128.3,128.24,16.42011209]
[1764552632128,7.79544745,128.28,128.25,0.71]
[1764552632542,7.79497807,128.29,128.25,0.71]
[1764552632737,7.79497807,128.29,128.25,5.08875367]
[1764552632941,37.29176337,128.31,128.25,5.08875367]
[1764552633137,13.18869859,128.33,128.27,4.37875367]
[1764552633335,16.308864,128.32,128.28,3.5]
[1764552633548,106.9,128.37,128.28,8.58875367]
[1764552633749,0.7,128.34,128.29,0.71]
[1764552633932,5.07875367,128.34,128.29,0.71]
[1764552634246,7.79241019,128.33,128.29,8.50471538]
[1764552634445,8.49241019,128.33,128.29,0.71]
[1764552634649,8.49241019,128.33,128.29,8.50476184]
[1764552634952,7.79241019,128.33,128.3,0.71]
[1764552635350,31.66764577,128.36,128.3,12.90049876]
[1764552635645,32.36764577,128.36,128.3,12.90049876]
[1764552635835,32.36764577,128.36,128.31,0.71]
[1764552636031,40.15984228,128.35,128.28,36.29435817]
[1764552636230,40.15984228,128.35,128.29,12.00461077]
[1764552636430,21.70044368,128.34,128.28,19.98579271]
[1764552636654,12.19049876,128.33,128.29,3.5]
[1764552636952,12.89049876,128.33,128.29,3.5]
[1764552637155,0.7,128.32,128.29,3.5]
[1764552637738,8.4933051,128.32,128.29,3.5]
[1764552638138,12.19049876,128.33,128.29,3.5]
[1764552638139,20.68304388,128.33,128.29,3.5]
[1764552638955,12.89049876,128.32,128.25,35.80133675]
[1764552639133,19.98304388,128.33,128.26,4.21]
[1764552639341,12.19049876,128.29,128.24,0.71]
[1764552639656,16.308864,128.24,128.18,0.71]
[1764552639854,19.98898585,128.23,128.2,3.5]
[1764552640061,12.19049876,128.22,128.18,0.71]
[1764552640355,12.89049876,128.22,128.17,0.71]
[1764552640663,12.19049876,128.2,128.15,0.71]
[1764552640834,12.19049876,128.2,128.17,3.5]
[1764552641035,12.89049876,128.2,128.17,3.5]
[1764552641361,16.308864,128.2,128.17,0.71]
[1764552641538,7.79848709,128.23,128.18,0.71]
[1764552641738,20.68898585,128.23,128.18,0.71]
[1764552642139,7.79848709,128.23,128.18,0.71]
[1764552642346,12.89049876,128.22,128.18,0.71]
[1764552642549,20.68898585,128.23,128.18,0.71]
[1764552643156,8.49848709,128.23,128.18,0.71]
[1764552643357,0.7,128.22,128.18,8.5115089]
[1764552644263,8.4991406,128.22,128.18,8.5115089]
[1764552644460,7.79845847,128.24,128.19,12.90049876]
[1764552644859,7.79845847,128.24,128.2,0.71]
[1764552645164,7.79845847,128.24,128.2,4.21]
[1764552645666,7.79845847,128.24,128.2,12.01024472]
[1764552646263,7.79845847,128.24,128.21,0.71]
[1764552646434,8.49845847,128.24,128.2,11.30024472]
[1764552646640,7.79845847,128.24,128.21,0.71]
[1764552646845,19.98895723,128.24,128.21,0.71]
[1764552647041,7.79845847,128.24,128.21,0.71]
[1764552648449,39.48733232,128.22,128.16,16.308864]